{"text_format":"1","workbook":"xlsx","n_sheets":4,"sheets":["Interventions","CLASSES_DATAS","ELEVES_DATAS","Feuil1"],"not_rendered":{"charts":0,"images":0,"macros":1,"external_links":0,"defined_names":4,"comments":0,"pivot_tables":0},"unopened":[],"bounds":{"document_bytes":16777216,"sheet_cells":100000,"rows_first":2000,"rows_last":500,"rows_between":2000,"halvings":0,"cell_chars":16384,"cell_head_chars":4096},"cells_cut":0,"cells_raw":0,"read":"whole","date_system":"1900"}

{"sheet":"Interventions","index":0,"n_rows":106,"n_cols":15,"rows_kept":106,"cut":false,"hidden":false,"merged":[[0,1,0,2],[1,1,1,2]]}
[null,null,null,null,null,null,"Écran cassé - D3E",null,"Don 3e",null,"Restitution tablette"]
[null,null,null,null,null,null,"Autre",null,"Attribution E.C.A"]
[]
[]
["Nom & Prénom","Classe","N° Tablette","NVX N° Tablette","Motif présenté","Date","MDP Elève","Date dossier Pyth.","INC PYTH","Date Recup. ECON.","Date Retour ECON.","Manipulations","Remarques","Sortie D3E Pytheas","Restitution / Prêt"]
[{"$f":"IFERROR(INDEX(Eleves_datas[NOM],MATCH(Interventions!C6,pnd_inv,0)),\"\")&\" \"&IFERROR(INDEX(Eleves_datas[PRENOM],MATCH(Interventions!C6,pnd_inv,0)),\"\")","v":"RANDRIAMISAINA Anja"},{"$f":"IFERROR(INDEX(Eleves_datas[CLASSE],MATCH(Interventions!C6,pnd_inv,0)),\"\")","v":"3 C"},"17T000132"]
[{"$f":"IFERROR(INDEX(Eleves_datas[NOM],MATCH(Interventions!C7,pnd_inv,0)),\"\")&\" \"&IFERROR(INDEX(Eleves_datas[PRENOM],MATCH(Interventions!C7,pnd_inv,0)),\"\")","v":" "},{"$f":"IFERROR(INDEX(Eleves_datas[CLASSE],MATCH(Interventions!C7,pnd_inv,0)),\"\")","v":""}]
[{"$f":"IFERROR(INDEX(Eleves_datas[NOM],MATCH(Interventions!C8,pnd_inv,0)),\"\")&\" \"&IFERROR(INDEX(Eleves_datas[PRENOM],MATCH(Interventions!C8,pnd_inv,0)),\"\")","v":" "},{"$f":"IFERROR(INDEX(Eleves_datas[CLASSE],MATCH(Interventions!C8,pnd_inv,0)),\"\")","v":""}]
[{"$f":"IFERROR(INDEX(Eleves_datas[NOM],MATCH(Interventions!C9,pnd_inv,0)),\"\")&\" \"&IFERROR(INDEX(Eleves_datas[PRENOM],MATCH(Interventions!C9,pnd_inv,0)),\"\")","v":" "},{"$f":"IFERROR(INDEX(Eleves_datas[CLASSE],MATCH(Interventions!C9,pnd_inv,0)),\"\")","v":""}]
[{"$f":"IFERROR(INDEX(Eleves_datas[NOM],MATCH(Interventions!C10,pnd_inv,0)),\"\")&\" \"&IFERROR(INDEX(Eleves_datas[PRENOM],MATCH(Interventions!C10,pnd_inv,0)),\"\")","v":" "},{"$f":"IFERROR(INDEX(Eleves_datas[CLASSE],MATCH(Interventions!C10,pnd_inv,0)),\"\")","v":""}]
[{"$f":"IFERROR(INDEX(Eleves_datas[NOM],MATCH(Interventions!C11,pnd_inv,0)),\"\")&\" \"&IFERROR(INDEX(Eleves_datas[PRENOM],MATCH(Interventions!C11,pnd_inv,0)),\"\")","v":" "},{"$f":"IFERROR(INDEX(Eleves_datas[CLASSE],MATCH(Interventions!C11,pnd_inv,0)),\"\")","v":""}]
[{"$f":"IFERROR(INDEX(Eleves_datas[NOM],MATCH(Interventions!C12,pnd_inv,0)),\"\")&\" \"&IFERROR(INDEX(Eleves_datas[PRENOM],MATCH(Interventions!C12,pnd_inv,0)),\"\")","v":" "},{"$f":"IFERROR(INDEX(Eleves_datas[CLASSE],MATCH(Interventions!C12,pnd_inv,0)),\"\")","v":""}]
[{"$f":"IFERROR(INDEX(Eleves_datas[NOM],MATCH(Interventions!C13,pnd_inv,0)),\"\")&\" \"&IFERROR(INDEX(Eleves_datas[PRENOM],MATCH(Interventions!C13,pnd_inv,0)),\"\")","v":" "},{"$f":"IFERROR(INDEX(Eleves_datas[CLASSE],MATCH(Interventions!C13,pnd_inv,0)),\"\")","v":""}]
[{"$f":"IFERROR(INDEX(Eleves_datas[NOM],MATCH(Interventions!C14,pnd_inv,0)),\"\")&\" \"&IFERROR(INDEX(Eleves_datas[PRENOM],MATCH(Interventions!C14,pnd_inv,0)),\"\")","v":" "},{"$f":"IFERROR(INDEX(Eleves_datas[CLASSE],MATCH(Interventions!C14,pnd_inv,0)),\"\")","v":""}]
[{"$f":"IFERROR(INDEX(Eleves_datas[NOM],MATCH(Interventions!C15,pnd_inv,0)),\"\")&\" \"&IFERROR(INDEX(Eleves_datas[PRENOM],MATCH(Interventions!C15,pnd_inv,0)),\"\")","v":" "},{"$f":"IFERROR(INDEX(Eleves_datas[CLASSE],MATCH(Interventions!C15,pnd_inv,0)),\"\")","v":""}]
[{"$f":"IFERROR(INDEX(Eleves_datas[NOM],MATCH(Interventions!C16,pnd_inv,0)),\"\")&\" \"&IFERROR(INDEX(Eleves_datas[PRENOM],MATCH(Interventions!C16,pnd_inv,0)),\"\")","v":" "},{"$f":"IFERROR(INDEX(Eleves_datas[CLASSE],MATCH(Interventions!C16,pnd_inv,0)),\"\")","v":""}]
[{"$f":"IFERROR(INDEX(Eleves_datas[NOM],MATCH(Interventions!C17,pnd_inv,0)),\"\")&\" \"&IFERROR(INDEX(Eleves_datas[PRENOM],MATCH(Interventions!C17,pnd_inv,0)),\"\")","v":" "},{"$f":"IFERROR(INDEX(Eleves_datas[CLASSE],MATCH(Interventions!C17,pnd_inv,0)),\"\")","v":""}]
[{"$f":"IFERROR(INDEX(Eleves_datas[NOM],MATCH(Interventions!C18,pnd_inv,0)),\"\")&\" \"&IFERROR(INDEX(Eleves_datas[PRENOM],MATCH(Interventions!C18,pnd_inv,0)),\"\")","v":" "},{"$f":"IFERROR(INDEX(Eleves_datas[CLASSE],MATCH(Interventions!C18,pnd_inv,0)),\"\")","v":""}]
[{"$f":"IFERROR(INDEX(Eleves_datas[NOM],MATCH(Interventions!C19,pnd_inv,0)),\"\")&\" \"&IFERROR(INDEX(Eleves_datas[PRENOM],MATCH(Interventions!C19,pnd_inv,0)),\"\")","v":" "},{"$f":"IFERROR(INDEX(Eleves_datas[CLASSE],MATCH(Interventions!C19,pnd_inv,0)),\"\")","v":""}]
[{"$f":"IFERROR(INDEX(Eleves_datas[NOM],MATCH(Interventions!C20,pnd_inv,0)),\"\")&\" \"&IFERROR(INDEX(Eleves_datas[PRENOM],MATCH(Interventions!C20,pnd_inv,0)),\"\")","v":" "},{"$f":"IFERROR(INDEX(Eleves_datas[CLASSE],MATCH(Interventions!C20,pnd_inv,0)),\"\")","v":""}]
[{"$f":"IFERROR(INDEX(Eleves_datas[NOM],MATCH(Interventions!C21,pnd_inv,0)),\"\")&\" \"&IFERROR(INDEX(Eleves_datas[PRENOM],MATCH(Interventions!C21,pnd_inv,0)),\"\")","v":" "},{"$f":"IFERROR(INDEX(Eleves_datas[CLASSE],MATCH(Interventions!C21,pnd_inv,0)),\"\")","v":""}]
[{"$f":"IFERROR(INDEX(Eleves_datas[NOM],MATCH(Interventions!C22,pnd_inv,0)),\"\")&\" \"&IFERROR(INDEX(Eleves_datas[PRENOM],MATCH(Interventions!C22,pnd_inv,0)),\"\")","v":" "},{"$f":"IFERROR(INDEX(Eleves_datas[CLASSE],MATCH(Interventions!C22,pnd_inv,0)),\"\")","v":""}]
[{"$f":"IFERROR(INDEX(Eleves_datas[NOM],MATCH(Interventions!C23,pnd_inv,0)),\"\")&\" \"&IFERROR(INDEX(Eleves_datas[PRENOM],MATCH(Interventions!C23,pnd_inv,0)),\"\")","v":" "},{"$f":"IFERROR(INDEX(Eleves_datas[CLASSE],MATCH(Interventions!C23,pnd_inv,0)),\"\")","v":""}]
[{"$f":"IFERROR(INDEX(Eleves_datas[NOM],MATCH(Interventions!C24,pnd_inv,0)),\"\")&\" \"&IFERROR(INDEX(Eleves_datas[PRENOM],MATCH(Interventions!C24,pnd_inv,0)),\"\")","v":" "},{"$f":"IFERROR(INDEX(Eleves_datas[CLASSE],MATCH(Interventions!C24,pnd_inv,0)),\"\")","v":""}]
[{"$f":"IFERROR(INDEX(Eleves_datas[NOM],MATCH(Interventions!C25,pnd_inv,0)),\"\")&\" \"&IFERROR(INDEX(Eleves_datas[PRENOM],MATCH(Interventions!C25,pnd_inv,0)),\"\")","v":" "},{"$f":"IFERROR(INDEX(Eleves_datas[CLASSE],MATCH(Interventions!C25,pnd_inv,0)),\"\")","v":""}]
[{"$f":"IFERROR(INDEX(Eleves_datas[NOM],MATCH(Interventions!C26,pnd_inv,0)),\"\")&\" \"&IFERROR(INDEX(Eleves_datas[PRENOM],MATCH(Interventions!C26,pnd_inv,0)),\"\")","v":" "},{"$f":"IFERROR(INDEX(Eleves_datas[CLASSE],MATCH(Interventions!C26,pnd_inv,0)),\"\")","v":""}]
[{"$f":"IFERROR(INDEX(Eleves_datas[NOM],MATCH(Interventions!C27,pnd_inv,0)),\"\")&\" \"&IFERROR(INDEX(Eleves_datas[PRENOM],MATCH(Interventions!C27,pnd_inv,0)),\"\")","v":" "},{"$f":"IFERROR(INDEX(Eleves_datas[CLASSE],MATCH(Interventions!C27,pnd_inv,0)),\"\")","v":""}]
[{"$f":"IFERROR(INDEX(Eleves_datas[NOM],MATCH(Interventions!C28,pnd_inv,0)),\"\")&\" \"&IFERROR(INDEX(Eleves_datas[PRENOM],MATCH(Interventions!C28,pnd_inv,0)),\"\")","v":" "},{"$f":"IFERROR(INDEX(Eleves_datas[CLASSE],MATCH(Interventions!C28,pnd_inv,0)),\"\")","v":""}]
[{"$f":"IFERROR(INDEX(Eleves_datas[NOM],MATCH(Interventions!C29,pnd_inv,0)),\"\")&\" \"&IFERROR(INDEX(Eleves_datas[PRENOM],MATCH(Interventions!C29,pnd_inv,0)),\"\")","v":" "},{"$f":"IFERROR(INDEX(Eleves_datas[CLASSE],MATCH(Interventions!C29,pnd_inv,0)),\"\")","v":""}]
[{"$f":"IFERROR(INDEX(Eleves_datas[NOM],MATCH(Interventions!C30,pnd_inv,0)),\"\")&\" \"&IFERROR(INDEX(Eleves_datas[PRENOM],MATCH(Interventions!C30,pnd_inv,0)),\"\")","v":" "},{"$f":"IFERROR(INDEX(Eleves_datas[CLASSE],MATCH(Interventions!C30,pnd_inv,0)),\"\")","v":""}]
[{"$f":"IFERROR(INDEX(Eleves_datas[NOM],MATCH(Interventions!C31,pnd_inv,0)),\"\")&\" \"&IFERROR(INDEX(Eleves_datas[PRENOM],MATCH(Interventions!C31,pnd_inv,0)),\"\")","v":" "},{"$f":"IFERROR(INDEX(Eleves_datas[CLASSE],MATCH(Interventions!C31,pnd_inv,0)),\"\")","v":""}]
[{"$f":"IFERROR(INDEX(Eleves_datas[NOM],MATCH(Interventions!C32,pnd_inv,0)),\"\")&\" \"&IFERROR(INDEX(Eleves_datas[PRENOM],MATCH(Interventions!C32,pnd_inv,0)),\"\")","v":" "},{"$f":"IFERROR(INDEX(Eleves_datas[CLASSE],MATCH(Interventions!C32,pnd_inv,0)),\"\")","v":""}]
[{"$f":"IFERROR(INDEX(Eleves_datas[NOM],MATCH(Interventions!C33,pnd_inv,0)),\"\")&\" \"&IFERROR(INDEX(Eleves_datas[PRENOM],MATCH(Interventions!C33,pnd_inv,0)),\"\")","v":" "},{"$f":"IFERROR(INDEX(Eleves_datas[CLASSE],MATCH(Interventions!C33,pnd_inv,0)),\"\")","v":""}]
[{"$f":"IFERROR(INDEX(Eleves_datas[NOM],MATCH(Interventions!C34,pnd_inv,0)),\"\")&\" \"&IFERROR(INDEX(Eleves_datas[PRENOM],MATCH(Interventions!C34,pnd_inv,0)),\"\")","v":" "},{"$f":"IFERROR(INDEX(Eleves_datas[CLASSE],MATCH(Interventions!C34,pnd_inv,0)),\"\")","v":""}]
[{"$f":"IFERROR(INDEX(Eleves_datas[NOM],MATCH(Interventions!C35,pnd_inv,0)),\"\")&\" \"&IFERROR(INDEX(Eleves_datas[PRENOM],MATCH(Interventions!C35,pnd_inv,0)),\"\")","v":" "},{"$f":"IFERROR(INDEX(Eleves_datas[CLASSE],MATCH(Interventions!C35,pnd_inv,0)),\"\")","v":""}]
[{"$f":"IFERROR(INDEX(Eleves_datas[NOM],MATCH(Interventions!C36,pnd_inv,0)),\"\")&\" \"&IFERROR(INDEX(Eleves_datas[PRENOM],MATCH(Interventions!C36,pnd_inv,0)),\"\")","v":" "},{"$f":"IFERROR(INDEX(Eleves_datas[CLASSE],MATCH(Interventions!C36,pnd_inv,0)),\"\")","v":""}]
[{"$f":"IFERROR(INDEX(Eleves_datas[NOM],MATCH(Interventions!C37,pnd_inv,0)),\"\")&\" \"&IFERROR(INDEX(Eleves_datas[PRENOM],MATCH(Interventions!C37,pnd_inv,0)),\"\")","v":" "},{"$f":"IFERROR(INDEX(Eleves_datas[CLASSE],MATCH(Interventions!C37,pnd_inv,0)),\"\")","v":""}]
[{"$f":"IFERROR(INDEX(Eleves_datas[NOM],MATCH(Interventions!C38,pnd_inv,0)),\"\")&\" \"&IFERROR(INDEX(Eleves_datas[PRENOM],MATCH(Interventions!C38,pnd_inv,0)),\"\")","v":" "},{"$f":"IFERROR(INDEX(Eleves_datas[CLASSE],MATCH(Interventions!C38,pnd_inv,0)),\"\")","v":""}]
[{"$f":"IFERROR(INDEX(Eleves_datas[NOM],MATCH(Interventions!C39,pnd_inv,0)),\"\")&\" \"&IFERROR(INDEX(Eleves_datas[PRENOM],MATCH(Interventions!C39,pnd_inv,0)),\"\")","v":" "},{"$f":"IFERROR(INDEX(Eleves_datas[CLASSE],MATCH(Interventions!C39,pnd_inv,0)),\"\")","v":""}]
[{"$f":"IFERROR(INDEX(Eleves_datas[NOM],MATCH(Interventions!C40,pnd_inv,0)),\"\")&\" \"&IFERROR(INDEX(Eleves_datas[PRENOM],MATCH(Interventions!C40,pnd_inv,0)),\"\")","v":" "},{"$f":"IFERROR(INDEX(Eleves_datas[CLASSE],MATCH(Interventions!C40,pnd_inv,0)),\"\")","v":""}]
[{"$f":"IFERROR(INDEX(Eleves_datas[NOM],MATCH(Interventions!C41,pnd_inv,0)),\"\")&\" \"&IFERROR(INDEX(Eleves_datas[PRENOM],MATCH(Interventions!C41,pnd_inv,0)),\"\")","v":" "},{"$f":"IFERROR(INDEX(Eleves_datas[CLASSE],MATCH(Interventions!C41,pnd_inv,0)),\"\")","v":""}]
[{"$f":"IFERROR(INDEX(Eleves_datas[NOM],MATCH(Interventions!C42,pnd_inv,0)),\"\")&\" \"&IFERROR(INDEX(Eleves_datas[PRENOM],MATCH(Interventions!C42,pnd_inv,0)),\"\")","v":" "},{"$f":"IFERROR(INDEX(Eleves_datas[CLASSE],MATCH(Interventions!C42,pnd_inv,0)),\"\")","v":""}]
[{"$f":"IFERROR(INDEX(Eleves_datas[NOM],MATCH(Interventions!C43,pnd_inv,0)),\"\")&\" \"&IFERROR(INDEX(Eleves_datas[PRENOM],MATCH(Interventions!C43,pnd_inv,0)),\"\")","v":" "},{"$f":"IFERROR(INDEX(Eleves_datas[CLASSE],MATCH(Interventions!C43,pnd_inv,0)),\"\")","v":""}]
[{"$f":"IFERROR(INDEX(Eleves_datas[NOM],MATCH(Interventions!C44,pnd_inv,0)),\"\")&\" \"&IFERROR(INDEX(Eleves_datas[PRENOM],MATCH(Interventions!C44,pnd_inv,0)),\"\")","v":" "},{"$f":"IFERROR(INDEX(Eleves_datas[CLASSE],MATCH(Interventions!C44,pnd_inv,0)),\"\")","v":""}]
[{"$f":"IFERROR(INDEX(Eleves_datas[NOM],MATCH(Interventions!C45,pnd_inv,0)),\"\")&\" \"&IFERROR(INDEX(Eleves_datas[PRENOM],MATCH(Interventions!C45,pnd_inv,0)),\"\")","v":" "},{"$f":"IFERROR(INDEX(Eleves_datas[CLASSE],MATCH(Interventions!C45,pnd_inv,0)),\"\")","v":""}]
[{"$f":"IFERROR(INDEX(Eleves_datas[NOM],MATCH(Interventions!C46,pnd_inv,0)),\"\")&\" \"&IFERROR(INDEX(Eleves_datas[PRENOM],MATCH(Interventions!C46,pnd_inv,0)),\"\")","v":" "},{"$f":"IFERROR(INDEX(Eleves_datas[CLASSE],MATCH(Interventions!C46,pnd_inv,0)),\"\")","v":""}]
[{"$f":"IFERROR(INDEX(Eleves_datas[NOM],MATCH(Interventions!C47,pnd_inv,0)),\"\")&\" \"&IFERROR(INDEX(Eleves_datas[PRENOM],MATCH(Interventions!C47,pnd_inv,0)),\"\")","v":" "},{"$f":"IFERROR(INDEX(Eleves_datas[CLASSE],MATCH(Interventions!C47,pnd_inv,0)),\"\")","v":""}]
[{"$f":"IFERROR(INDEX(Eleves_datas[NOM],MATCH(Interventions!C48,pnd_inv,0)),\"\")&\" \"&IFERROR(INDEX(Eleves_datas[PRENOM],MATCH(Interventions!C48,pnd_inv,0)),\"\")","v":" "},{"$f":"IFERROR(INDEX(Eleves_datas[CLASSE],MATCH(Interventions!C48,pnd_inv,0)),\"\")","v":""}]
[{"$f":"IFERROR(INDEX(Eleves_datas[NOM],MATCH(Interventions!C49,pnd_inv,0)),\"\")&\" \"&IFERROR(INDEX(Eleves_datas[PRENOM],MATCH(Interventions!C49,pnd_inv,0)),\"\")","v":" "},{"$f":"IFERROR(INDEX(Eleves_datas[CLASSE],MATCH(Interventions!C49,pnd_inv,0)),\"\")","v":""}]
[{"$f":"IFERROR(INDEX(Eleves_datas[NOM],MATCH(Interventions!C50,pnd_inv,0)),\"\")&\" \"&IFERROR(INDEX(Eleves_datas[PRENOM],MATCH(Interventions!C50,pnd_inv,0)),\"\")","v":" "},{"$f":"IFERROR(INDEX(Eleves_datas[CLASSE],MATCH(Interventions!C50,pnd_inv,0)),\"\")","v":""}]
[{"$f":"IFERROR(INDEX(Eleves_datas[NOM],MATCH(Interventions!C51,pnd_inv,0)),\"\")&\" \"&IFERROR(INDEX(Eleves_datas[PRENOM],MATCH(Interventions!C51,pnd_inv,0)),\"\")","v":" "},{"$f":"IFERROR(INDEX(Eleves_datas[CLASSE],MATCH(Interventions!C51,pnd_inv,0)),\"\")","v":""}]
[{"$f":"IFERROR(INDEX(Eleves_datas[NOM],MATCH(Interventions!C52,pnd_inv,0)),\"\")&\" \"&IFERROR(INDEX(Eleves_datas[PRENOM],MATCH(Interventions!C52,pnd_inv,0)),\"\")","v":" "},{"$f":"IFERROR(INDEX(Eleves_datas[CLASSE],MATCH(Interventions!C52,pnd_inv,0)),\"\")","v":""}]
[{"$f":"IFERROR(INDEX(Eleves_datas[NOM],MATCH(Interventions!C53,pnd_inv,0)),\"\")&\" \"&IFERROR(INDEX(Eleves_datas[PRENOM],MATCH(Interventions!C53,pnd_inv,0)),\"\")","v":" "},{"$f":"IFERROR(INDEX(Eleves_datas[CLASSE],MATCH(Interventions!C53,pnd_inv,0)),\"\")","v":""}]
[{"$f":"IFERROR(INDEX(Eleves_datas[NOM],MATCH(Interventions!C54,pnd_inv,0)),\"\")&\" \"&IFERROR(INDEX(Eleves_datas[PRENOM],MATCH(Interventions!C54,pnd_inv,0)),\"\")","v":" "},{"$f":"IFERROR(INDEX(Eleves_datas[CLASSE],MATCH(Interventions!C54,pnd_inv,0)),\"\")","v":""}]
[{"$f":"IFERROR(INDEX(Eleves_datas[NOM],MATCH(Interventions!C55,pnd_inv,0)),\"\")&\" \"&IFERROR(INDEX(Eleves_datas[PRENOM],MATCH(Interventions!C55,pnd_inv,0)),\"\")","v":" "},{"$f":"IFERROR(INDEX(Eleves_datas[CLASSE],MATCH(Interventions!C55,pnd_inv,0)),\"\")","v":""}]
[{"$f":"IFERROR(INDEX(Eleves_datas[NOM],MATCH(Interventions!C56,pnd_inv,0)),\"\")&\" \"&IFERROR(INDEX(Eleves_datas[PRENOM],MATCH(Interventions!C56,pnd_inv,0)),\"\")","v":" "},{"$f":"IFERROR(INDEX(Eleves_datas[CLASSE],MATCH(Interventions!C56,pnd_inv,0)),\"\")","v":""}]
[{"$f":"IFERROR(INDEX(Eleves_datas[NOM],MATCH(Interventions!C57,pnd_inv,0)),\"\")&\" \"&IFERROR(INDEX(Eleves_datas[PRENOM],MATCH(Interventions!C57,pnd_inv,0)),\"\")","v":" "},{"$f":"IFERROR(INDEX(Eleves_datas[CLASSE],MATCH(Interventions!C57,pnd_inv,0)),\"\")","v":""}]
[{"$f":"IFERROR(INDEX(Eleves_datas[NOM],MATCH(Interventions!C58,pnd_inv,0)),\"\")&\" \"&IFERROR(INDEX(Eleves_datas[PRENOM],MATCH(Interventions!C58,pnd_inv,0)),\"\")","v":" "},{"$f":"IFERROR(INDEX(Eleves_datas[CLASSE],MATCH(Interventions!C58,pnd_inv,0)),\"\")","v":""}]
[{"$f":"IFERROR(INDEX(Eleves_datas[NOM],MATCH(Interventions!C59,pnd_inv,0)),\"\")&\" \"&IFERROR(INDEX(Eleves_datas[PRENOM],MATCH(Interventions!C59,pnd_inv,0)),\"\")","v":" "},{"$f":"IFERROR(INDEX(Eleves_datas[CLASSE],MATCH(Interventions!C59,pnd_inv,0)),\"\")","v":""}]
[{"$f":"IFERROR(INDEX(Eleves_datas[NOM],MATCH(Interventions!C60,pnd_inv,0)),\"\")&\" \"&IFERROR(INDEX(Eleves_datas[PRENOM],MATCH(Interventions!C60,pnd_inv,0)),\"\")","v":" "},{"$f":"IFERROR(INDEX(Eleves_datas[CLASSE],MATCH(Interventions!C60,pnd_inv,0)),\"\")","v":""}]
[{"$f":"IFERROR(INDEX(Eleves_datas[NOM],MATCH(Interventions!C61,pnd_inv,0)),\"\")&\" \"&IFERROR(INDEX(Eleves_datas[PRENOM],MATCH(Interventions!C61,pnd_inv,0)),\"\")","v":" "},{"$f":"IFERROR(INDEX(Eleves_datas[CLASSE],MATCH(Interventions!C61,pnd_inv,0)),\"\")","v":""}]
[{"$f":"IFERROR(INDEX(Eleves_datas[NOM],MATCH(Interventions!C62,pnd_inv,0)),\"\")&\" \"&IFERROR(INDEX(Eleves_datas[PRENOM],MATCH(Interventions!C62,pnd_inv,0)),\"\")","v":" "},{"$f":"IFERROR(INDEX(Eleves_datas[CLASSE],MATCH(Interventions!C62,pnd_inv,0)),\"\")","v":""}]
[{"$f":"IFERROR(INDEX(Eleves_datas[NOM],MATCH(Interventions!C63,pnd_inv,0)),\"\")&\" \"&IFERROR(INDEX(Eleves_datas[PRENOM],MATCH(Interventions!C63,pnd_inv,0)),\"\")","v":" "},{"$f":"IFERROR(INDEX(Eleves_datas[CLASSE],MATCH(Interventions!C63,pnd_inv,0)),\"\")","v":""}]
[{"$f":"IFERROR(INDEX(Eleves_datas[NOM],MATCH(Interventions!C64,pnd_inv,0)),\"\")&\" \"&IFERROR(INDEX(Eleves_datas[PRENOM],MATCH(Interventions!C64,pnd_inv,0)),\"\")","v":" "},{"$f":"IFERROR(INDEX(Eleves_datas[CLASSE],MATCH(Interventions!C64,pnd_inv,0)),\"\")","v":""}]
[{"$f":"IFERROR(INDEX(Eleves_datas[NOM],MATCH(Interventions!C65,pnd_inv,0)),\"\")&\" \"&IFERROR(INDEX(Eleves_datas[PRENOM],MATCH(Interventions!C65,pnd_inv,0)),\"\")","v":" "},{"$f":"IFERROR(INDEX(Eleves_datas[CLASSE],MATCH(Interventions!C65,pnd_inv,0)),\"\")","v":""}]
[{"$f":"IFERROR(INDEX(Eleves_datas[NOM],MATCH(Interventions!C66,pnd_inv,0)),\"\")&\" \"&IFERROR(INDEX(Eleves_datas[PRENOM],MATCH(Interventions!C66,pnd_inv,0)),\"\")","v":" "},{"$f":"IFERROR(INDEX(Eleves_datas[CLASSE],MATCH(Interventions!C66,pnd_inv,0)),\"\")","v":""}]
[{"$f":"IFERROR(INDEX(Eleves_datas[NOM],MATCH(Interventions!C67,pnd_inv,0)),\"\")&\" \"&IFERROR(INDEX(Eleves_datas[PRENOM],MATCH(Interventions!C67,pnd_inv,0)),\"\")","v":" "},{"$f":"IFERROR(INDEX(Eleves_datas[CLASSE],MATCH(Interventions!C67,pnd_inv,0)),\"\")","v":""}]
[{"$f":"IFERROR(INDEX(Eleves_datas[NOM],MATCH(Interventions!C68,pnd_inv,0)),\"\")&\" \"&IFERROR(INDEX(Eleves_datas[PRENOM],MATCH(Interventions!C68,pnd_inv,0)),\"\")","v":" "},{"$f":"IFERROR(INDEX(Eleves_datas[CLASSE],MATCH(Interventions!C68,pnd_inv,0)),\"\")","v":""}]
[{"$f":"IFERROR(INDEX(Eleves_datas[NOM],MATCH(Interventions!C69,pnd_inv,0)),\"\")&\" \"&IFERROR(INDEX(Eleves_datas[PRENOM],MATCH(Interventions!C69,pnd_inv,0)),\"\")","v":" "},{"$f":"IFERROR(INDEX(Eleves_datas[CLASSE],MATCH(Interventions!C69,pnd_inv,0)),\"\")","v":""}]
[{"$f":"IFERROR(INDEX(Eleves_datas[NOM],MATCH(Interventions!C70,pnd_inv,0)),\"\")&\" \"&IFERROR(INDEX(Eleves_datas[PRENOM],MATCH(Interventions!C70,pnd_inv,0)),\"\")","v":" "},{"$f":"IFERROR(INDEX(Eleves_datas[CLASSE],MATCH(Interventions!C70,pnd_inv,0)),\"\")","v":""}]
[{"$f":"IFERROR(INDEX(Eleves_datas[NOM],MATCH(Interventions!C71,pnd_inv,0)),\"\")&\" \"&IFERROR(INDEX(Eleves_datas[PRENOM],MATCH(Interventions!C71,pnd_inv,0)),\"\")","v":" "},{"$f":"IFERROR(INDEX(Eleves_datas[CLASSE],MATCH(Interventions!C71,pnd_inv,0)),\"\")","v":""}]
[{"$f":"IFERROR(INDEX(Eleves_datas[NOM],MATCH(Interventions!C72,pnd_inv,0)),\"\")&\" \"&IFERROR(INDEX(Eleves_datas[PRENOM],MATCH(Interventions!C72,pnd_inv,0)),\"\")","v":" "},{"$f":"IFERROR(INDEX(Eleves_datas[CLASSE],MATCH(Interventions!C72,pnd_inv,0)),\"\")","v":""}]
[{"$f":"IFERROR(INDEX(Eleves_datas[NOM],MATCH(Interventions!C73,pnd_inv,0)),\"\")&\" \"&IFERROR(INDEX(Eleves_datas[PRENOM],MATCH(Interventions!C73,pnd_inv,0)),\"\")","v":" "},{"$f":"IFERROR(INDEX(Eleves_datas[CLASSE],MATCH(Interventions!C73,pnd_inv,0)),\"\")","v":""}]
[{"$f":"IFERROR(INDEX(Eleves_datas[NOM],MATCH(Interventions!C74,pnd_inv,0)),\"\")&\" \"&IFERROR(INDEX(Eleves_datas[PRENOM],MATCH(Interventions!C74,pnd_inv,0)),\"\")","v":" "},{"$f":"IFERROR(INDEX(Eleves_datas[CLASSE],MATCH(Interventions!C74,pnd_inv,0)),\"\")","v":""}]
[{"$f":"IFERROR(INDEX(Eleves_datas[NOM],MATCH(Interventions!C75,pnd_inv,0)),\"\")&\" \"&IFERROR(INDEX(Eleves_datas[PRENOM],MATCH(Interventions!C75,pnd_inv,0)),\"\")","v":" "},{"$f":"IFERROR(INDEX(Eleves_datas[CLASSE],MATCH(Interventions!C75,pnd_inv,0)),\"\")","v":""}]
[{"$f":"IFERROR(INDEX(Eleves_datas[NOM],MATCH(Interventions!C76,pnd_inv,0)),\"\")&\" \"&IFERROR(INDEX(Eleves_datas[PRENOM],MATCH(Interventions!C76,pnd_inv,0)),\"\")","v":" "},{"$f":"IFERROR(INDEX(Eleves_datas[CLASSE],MATCH(Interventions!C76,pnd_inv,0)),\"\")","v":""}]
[{"$f":"IFERROR(INDEX(Eleves_datas[NOM],MATCH(Interventions!C77,pnd_inv,0)),\"\")&\" \"&IFERROR(INDEX(Eleves_datas[PRENOM],MATCH(Interventions!C77,pnd_inv,0)),\"\")","v":" "},{"$f":"IFERROR(INDEX(Eleves_datas[CLASSE],MATCH(Interventions!C77,pnd_inv,0)),\"\")","v":""}]
[{"$f":"IFERROR(INDEX(Eleves_datas[NOM],MATCH(Interventions!C78,pnd_inv,0)),\"\")&\" \"&IFERROR(INDEX(Eleves_datas[PRENOM],MATCH(Interventions!C78,pnd_inv,0)),\"\")","v":" "},{"$f":"IFERROR(INDEX(Eleves_datas[CLASSE],MATCH(Interventions!C78,pnd_inv,0)),\"\")","v":""}]
[{"$f":"IFERROR(INDEX(Eleves_datas[NOM],MATCH(Interventions!C79,pnd_inv,0)),\"\")&\" \"&IFERROR(INDEX(Eleves_datas[PRENOM],MATCH(Interventions!C79,pnd_inv,0)),\"\")","v":" "},{"$f":"IFERROR(INDEX(Eleves_datas[CLASSE],MATCH(Interventions!C79,pnd_inv,0)),\"\")","v":""}]
[{"$f":"IFERROR(INDEX(Eleves_datas[NOM],MATCH(Interventions!C80,pnd_inv,0)),\"\")&\" \"&IFERROR(INDEX(Eleves_datas[PRENOM],MATCH(Interventions!C80,pnd_inv,0)),\"\")","v":" "},{"$f":"IFERROR(INDEX(Eleves_datas[CLASSE],MATCH(Interventions!C80,pnd_inv,0)),\"\")","v":""}]
[{"$f":"IFERROR(INDEX(Eleves_datas[NOM],MATCH(Interventions!C81,pnd_inv,0)),\"\")&\" \"&IFERROR(INDEX(Eleves_datas[PRENOM],MATCH(Interventions!C81,pnd_inv,0)),\"\")","v":" "},{"$f":"IFERROR(INDEX(Eleves_datas[CLASSE],MATCH(Interventions!C81,pnd_inv,0)),\"\")","v":""}]
[{"$f":"IFERROR(INDEX(Eleves_datas[NOM],MATCH(Interventions!C82,pnd_inv,0)),\"\")&\" \"&IFERROR(INDEX(Eleves_datas[PRENOM],MATCH(Interventions!C82,pnd_inv,0)),\"\")","v":" "},{"$f":"IFERROR(INDEX(Eleves_datas[CLASSE],MATCH(Interventions!C82,pnd_inv,0)),\"\")","v":""}]
[{"$f":"IFERROR(INDEX(Eleves_datas[NOM],MATCH(Interventions!C83,pnd_inv,0)),\"\")&\" \"&IFERROR(INDEX(Eleves_datas[PRENOM],MATCH(Interventions!C83,pnd_inv,0)),\"\")","v":" "},{"$f":"IFERROR(INDEX(Eleves_datas[CLASSE],MATCH(Interventions!C83,pnd_inv,0)),\"\")","v":""}]
[{"$f":"IFERROR(INDEX(Eleves_datas[NOM],MATCH(Interventions!C84,pnd_inv,0)),\"\")&\" \"&IFERROR(INDEX(Eleves_datas[PRENOM],MATCH(Interventions!C84,pnd_inv,0)),\"\")","v":" "},{"$f":"IFERROR(INDEX(Eleves_datas[CLASSE],MATCH(Interventions!C84,pnd_inv,0)),\"\")","v":""}]
[{"$f":"IFERROR(INDEX(Eleves_datas[NOM],MATCH(Interventions!C85,pnd_inv,0)),\"\")&\" \"&IFERROR(INDEX(Eleves_datas[PRENOM],MATCH(Interventions!C85,pnd_inv,0)),\"\")","v":" "},{"$f":"IFERROR(INDEX(Eleves_datas[CLASSE],MATCH(Interventions!C85,pnd_inv,0)),\"\")","v":""}]
[{"$f":"IFERROR(INDEX(Eleves_datas[NOM],MATCH(Interventions!C86,pnd_inv,0)),\"\")&\" \"&IFERROR(INDEX(Eleves_datas[PRENOM],MATCH(Interventions!C86,pnd_inv,0)),\"\")","v":" "},{"$f":"IFERROR(INDEX(Eleves_datas[CLASSE],MATCH(Interventions!C86,pnd_inv,0)),\"\")","v":""}]
[{"$f":"IFERROR(INDEX(Eleves_datas[NOM],MATCH(Interventions!C87,pnd_inv,0)),\"\")&\" \"&IFERROR(INDEX(Eleves_datas[PRENOM],MATCH(Interventions!C87,pnd_inv,0)),\"\")","v":" "},{"$f":"IFERROR(INDEX(Eleves_datas[CLASSE],MATCH(Interventions!C87,pnd_inv,0)),\"\")","v":""}]
[{"$f":"IFERROR(INDEX(Eleves_datas[NOM],MATCH(Interventions!C88,pnd_inv,0)),\"\")&\" \"&IFERROR(INDEX(Eleves_datas[PRENOM],MATCH(Interventions!C88,pnd_inv,0)),\"\")","v":" "},{"$f":"IFERROR(INDEX(Eleves_datas[CLASSE],MATCH(Interventions!C88,pnd_inv,0)),\"\")","v":""}]
[{"$f":"IFERROR(INDEX(Eleves_datas[NOM],MATCH(Interventions!C89,pnd_inv,0)),\"\")&\" \"&IFERROR(INDEX(Eleves_datas[PRENOM],MATCH(Interventions!C89,pnd_inv,0)),\"\")","v":" "},{"$f":"IFERROR(INDEX(Eleves_datas[CLASSE],MATCH(Interventions!C89,pnd_inv,0)),\"\")","v":""}]
[{"$f":"IFERROR(INDEX(Eleves_datas[NOM],MATCH(Interventions!C90,pnd_inv,0)),\"\")&\" \"&IFERROR(INDEX(Eleves_datas[PRENOM],MATCH(Interventions!C90,pnd_inv,0)),\"\")","v":" "},{"$f":"IFERROR(INDEX(Eleves_datas[CLASSE],MATCH(Interventions!C90,pnd_inv,0)),\"\")","v":""}]
[{"$f":"IFERROR(INDEX(Eleves_datas[NOM],MATCH(Interventions!C91,pnd_inv,0)),\"\")&\" \"&IFERROR(INDEX(Eleves_datas[PRENOM],MATCH(Interventions!C91,pnd_inv,0)),\"\")","v":" "},{"$f":"IFERROR(INDEX(Eleves_datas[CLASSE],MATCH(Interventions!C91,pnd_inv,0)),\"\")","v":""}]
[{"$f":"IFERROR(INDEX(Eleves_datas[NOM],MATCH(Interventions!C92,pnd_inv,0)),\"\")&\" \"&IFERROR(INDEX(Eleves_datas[PRENOM],MATCH(Interventions!C92,pnd_inv,0)),\"\")","v":" "},{"$f":"IFERROR(INDEX(Eleves_datas[CLASSE],MATCH(Interventions!C92,pnd_inv,0)),\"\")","v":""}]
[{"$f":"IFERROR(INDEX(Eleves_datas[NOM],MATCH(Interventions!C93,pnd_inv,0)),\"\")&\" \"&IFERROR(INDEX(Eleves_datas[PRENOM],MATCH(Interventions!C93,pnd_inv,0)),\"\")","v":" "},{"$f":"IFERROR(INDEX(Eleves_datas[CLASSE],MATCH(Interventions!C93,pnd_inv,0)),\"\")","v":""}]
[{"$f":"IFERROR(INDEX(Eleves_datas[NOM],MATCH(Interventions!C94,pnd_inv,0)),\"\")&\" \"&IFERROR(INDEX(Eleves_datas[PRENOM],MATCH(Interventions!C94,pnd_inv,0)),\"\")","v":" "},{"$f":"IFERROR(INDEX(Eleves_datas[CLASSE],MATCH(Interventions!C94,pnd_inv,0)),\"\")","v":""}]
[{"$f":"IFERROR(INDEX(Eleves_datas[NOM],MATCH(Interventions!C95,pnd_inv,0)),\"\")&\" \"&IFERROR(INDEX(Eleves_datas[PRENOM],MATCH(Interventions!C95,pnd_inv,0)),\"\")","v":" "},{"$f":"IFERROR(INDEX(Eleves_datas[CLASSE],MATCH(Interventions!C95,pnd_inv,0)),\"\")","v":""}]
[{"$f":"IFERROR(INDEX(Eleves_datas[NOM],MATCH(Interventions!C96,pnd_inv,0)),\"\")&\" \"&IFERROR(INDEX(Eleves_datas[PRENOM],MATCH(Interventions!C96,pnd_inv,0)),\"\")","v":" "},{"$f":"IFERROR(INDEX(Eleves_datas[CLASSE],MATCH(Interventions!C96,pnd_inv,0)),\"\")","v":""}]
[{"$f":"IFERROR(INDEX(Eleves_datas[NOM],MATCH(Interventions!C97,pnd_inv,0)),\"\")&\" \"&IFERROR(INDEX(Eleves_datas[PRENOM],MATCH(Interventions!C97,pnd_inv,0)),\"\")","v":" "},{"$f":"IFERROR(INDEX(Eleves_datas[CLASSE],MATCH(Interventions!C97,pnd_inv,0)),\"\")","v":""}]
[{"$f":"IFERROR(INDEX(Eleves_datas[NOM],MATCH(Interventions!C98,pnd_inv,0)),\"\")&\" \"&IFERROR(INDEX(Eleves_datas[PRENOM],MATCH(Interventions!C98,pnd_inv,0)),\"\")","v":" "},{"$f":"IFERROR(INDEX(Eleves_datas[CLASSE],MATCH(Interventions!C98,pnd_inv,0)),\"\")","v":""}]
[{"$f":"IFERROR(INDEX(Eleves_datas[NOM],MATCH(Interventions!C99,pnd_inv,0)),\"\")&\" \"&IFERROR(INDEX(Eleves_datas[PRENOM],MATCH(Interventions!C99,pnd_inv,0)),\"\")","v":" "},{"$f":"IFERROR(INDEX(Eleves_datas[CLASSE],MATCH(Interventions!C99,pnd_inv,0)),\"\")","v":""}]
[{"$f":"IFERROR(INDEX(Eleves_datas[NOM],MATCH(Interventions!C100,pnd_inv,0)),\"\")&\" \"&IFERROR(INDEX(Eleves_datas[PRENOM],MATCH(Interventions!C100,pnd_inv,0)),\"\")","v":" "},{"$f":"IFERROR(INDEX(Eleves_datas[CLASSE],MATCH(Interventions!C100,pnd_inv,0)),\"\")","v":""}]
[{"$f":"IFERROR(INDEX(Eleves_datas[NOM],MATCH(Interventions!C101,pnd_inv,0)),\"\")&\" \"&IFERROR(INDEX(Eleves_datas[PRENOM],MATCH(Interventions!C101,pnd_inv,0)),\"\")","v":" "},{"$f":"IFERROR(INDEX(Eleves_datas[CLASSE],MATCH(Interventions!C101,pnd_inv,0)),\"\")","v":""}]
[{"$f":"IFERROR(INDEX(Eleves_datas[NOM],MATCH(Interventions!C102,pnd_inv,0)),\"\")&\" \"&IFERROR(INDEX(Eleves_datas[PRENOM],MATCH(Interventions!C102,pnd_inv,0)),\"\")","v":" "},{"$f":"IFERROR(INDEX(Eleves_datas[CLASSE],MATCH(Interventions!C102,pnd_inv,0)),\"\")","v":""}]
[{"$f":"IFERROR(INDEX(Eleves_datas[NOM],MATCH(Interventions!C103,pnd_inv,0)),\"\")&\" \"&IFERROR(INDEX(Eleves_datas[PRENOM],MATCH(Interventions!C103,pnd_inv,0)),\"\")","v":" "},{"$f":"IFERROR(INDEX(Eleves_datas[CLASSE],MATCH(Interventions!C103,pnd_inv,0)),\"\")","v":""}]
[{"$f":"IFERROR(INDEX(Eleves_datas[NOM],MATCH(Interventions!C104,pnd_inv,0)),\"\")&\" \"&IFERROR(INDEX(Eleves_datas[PRENOM],MATCH(Interventions!C104,pnd_inv,0)),\"\")","v":" "},{"$f":"IFERROR(INDEX(Eleves_datas[CLASSE],MATCH(Interventions!C104,pnd_inv,0)),\"\")","v":""}]
[{"$f":"IFERROR(INDEX(Eleves_datas[NOM],MATCH(Interventions!C105,pnd_inv,0)),\"\")&\" \"&IFERROR(INDEX(Eleves_datas[PRENOM],MATCH(Interventions!C105,pnd_inv,0)),\"\")","v":" "},{"$f":"IFERROR(INDEX(Eleves_datas[CLASSE],MATCH(Interventions!C105,pnd_inv,0)),\"\")","v":""}]
[{"$f":"IFERROR(INDEX(Eleves_datas[NOM],MATCH(Interventions!C106,pnd_inv,0)),\"\")&\" \"&IFERROR(INDEX(Eleves_datas[PRENOM],MATCH(Interventions!C106,pnd_inv,0)),\"\")","v":" "},{"$f":"IFERROR(INDEX(Eleves_datas[CLASSE],MATCH(Interventions!C106,pnd_inv,0)),\"\")","v":""}]

{"sheet":"CLASSES_DATAS","index":1,"n_rows":22,"n_cols":1,"rows_kept":22,"cut":false,"hidden":false,"merged":[]}
["3 A"]
["3 B"]
["3 C"]
["3 D"]
["3 E"]
["4 A"]
["4 B"]
["4 C"]
["4 D"]
["4 E"]
["4 F"]
["5 A"]
["5 B"]
["5 C"]
["5 D"]
["5 E"]
["5 F"]
["6 A"]
["6 B"]
["6 C"]
["6 D"]
["6 E"]

{"sheet":"ELEVES_DATAS","index":2,"n_rows":250,"n_cols":8,"rows_kept":250,"cut":false,"hidden":false,"merged":[]}
["NOM","PRENOM","CLASSE","PND_INV","AD_LOGIN","AD_PWINIT","DDN","PND_CUP"]
["AIELLO","Océane","3 A","17T000001","aielloo","Rares788","2004-03-01","543075DEPOLI"]
["ALEMAN","Lorine","3 A","17T000002","alemanl3","Mutin367","2004-11-12","729326FERRES"]
["AVERSA","Laura","3 A","17T000003","aversal","Divan434","2006-02-14","441479MASQUE"]
["BAROUH","Angelina","3 A","17T000004","barouha","Liras013","2005-11-26","305689SUAGES"]
["BECK","Romain","3 A","17T000005","beckr","Nerfs120","2005-08-14","191844FLIRTS"]
["BENARD","Emilie","3 A","17T000006","benarde","Humes608","2005-09-05","175934TOISAT"]
["BONICEL","Thomas","3 A","17T000007","bonicelt1","Canot483","2005-02-08","834430PEUPLE"]
["BOUABBA Massin","Massin","3 A","17T000008","bouabbam1","Ecale600","2005-10-16","973643BLONDE"]
["BOUABBA Melissa","Melissa","3 A","17T000009","bouabbam2","Skies062","2005-04-23","786547DESUNI"]
["BRAHMI","Sofiane","3 A","17T000010","brahmis1","Flapi807","2005-08-31","991320PIBALE"]
["CANO","Elisabeth","3 A","17T000011","verele1","Jupon373","2004-09-11","?"]
["CARRIC","Tristan","3 A","17T000012","carrict","Relus607","2005-06-23","641983FLANER"]
["COUPOUX-WILMART","Nathan","3 A","17T000013","coupouxwilmartn","Agoni061","2005-05-28","883934ALIBIS"]
["DIKICI","Rose Jeannet","3 A","17T000014","dikicir","Sulky501","2005-04-12","741803GAMETS"]
["DILEO","Mary","3 A","17T000015","dileom","Cloua205","2004-04-02","909322ACCOTE"]
["FERRER","Lilian","3 A","17T000016","ferrerl8","Caser508","2005-09-30","102964GAMBES"]
["GRANGE-GUEDON","Mina","3 A","17T000017","grangeguedonm","Luire582","2005-08-15","895363LUCANE"]
["GUIRAO","Ludo","3 A","17T000018","guiraol","Viree402","2005-03-13","638884TEORBE"]
["LEONETTI","Chloe","3 A","17T000019","leonettic1","Touas766","2005-06-08","221789PENSUM"]
["LEONETTI","Emma","3 A","17T000020","leonettie","Lobby137","2005-06-08","027507EXCAVE"]
["MERAKEB","Aya","3 A","17T000021","merakeba","Canot773","2005-09-12","145679EGARES"]
["MEZQUIDA","Lea","3 A","17T000022","mezquidal1","Relus725","2005-09-16","811099PEQUIN"]
["POURTAL","Rafaël","3 A","17T000023","pourtalr","Khols675","2005-05-10","525023OPIATS"]
["RIBOUCHON","Maysan","3 A","17T000024","ribouchonm","Calez460","2005-04-10","318637POULIE"]
["RICO","Neil","3 A","17T000025","ricon1","Louve315","2005-10-14","942634CRYPTE"]
["ROCHE","Mathieu","3 A","17T000026","rochem11","Caduc883","2005-10-12","800898RIVENT"]
["SCOTO-DI-SUOCCIO","Flavie","3 A","17T000027","scotodisuocciof","Gigue578","2005-03-31","356134CARMES"]
["VOGLER","Alan","3 A","17T000028","voglera","Anion637","2005-03-07","410805TESSON"]
["WARTON","Lucas","3 A","17T000029","wartonl","Luire361","2005-02-19","212886JERKES"]
["AMAR","Danil","3 B","17T000030","amard1","Posez873","2004-08-15","324035ABJURE"]
["AMEY","Youna","3 B","17T000031","ameyy","Nomes873","2004-09-22","605438COITES"]
["BAHAMMOU","Rida","3 B","17T000032","bahammour","Neveu366","2004-08-18","718579NAPPAT"]
["BARBE","Za√Øane","3 B","17T000033","barbez","Belge452","2003-10-17","293349SAPEES"]
["BEISO DE COSTER","Jean-Charles","3 B","17T000034","beisodecosterj","Caser734","2004-03-19","026656AGACER"]
["BORDJA","Yasmine","3 B","17T000035","bordjay","Bleme312","2004-11-24","532876IRISES"]
["BOSCHER","Lorenzo","3 B","17T000036","boscherl","Vamps755","2005-11-21","840555CARTEL"]
["BOUTLIJA","Cha√Ønes","3 B","17T000037","boutlijac","Plaid278","2005-10-08","229675LAPEES"]
["BOUZIANE","Chayma","3 B","17T000038","bouzianec1","Crepu541","2005-11-22","530080KHMERE"]
["CHATEUR","Douaa","3 B","17T000039","chateurd","Monda725","2004-09-23","423257GROUPE"]
["CORSYN","Ryan","3 B","17T000040","corsynr","Pipes107","2004-10-09","727169ETUDIE"]
["CORVASCE","Clara","3 B","17T000041","corvascec","Bilai215","2004-08-01","891258REVOIE"]
["DANE","Killian","3 B","17T000042","danek","Couva023","2005-07-25","881354PONGES"]
["DE POILLOUE DE SAINT PERIER","Elisa","3 B","17T000043","depoillouedesainte","Ecale384","2005-04-17","792602FRICHE"]
["DIALLO","Ines","3 B","17T000044","dialloi2","Fuels538","2004-11-16","894026DONJON"]
["DOULIERE","Simon","3 B","17T000045","doulieres","Taque801","2005-01-28","451750FUMAIS"]
["ESSEMIRI-THIEBAUT","Jade","3 B","17T000046","essemirithiebautj","Niant326","2005-03-02","814574LOTION"]
["FRIZZI","Melina","3 B","17T000047","frizzim","Nomes550","2005-08-29","447127MINIME"]
["GIORS","Doryan","3 B","17T000048","giorsd","Khols580","2005-11-07","931986RAPAGE"]
["GIULIANO","Timothe","3 B","17T000049","giulianot","Divan872","2005-07-20","960791AIRANT"]
["GOUALA-SA√èD","Matys","3 B","17T000050","goualasaidm","Vamps617","2005-04-24","399338AGONIT"]
["GRIGY","Noah","3 B","17T000051","grigyn","Ilots178","2005-06-27","205341EMPOTE"]
["GRIMA","Julia","3 B","17T000052","grimaj","Litre824","2005-03-22","818075BLUFFA"]
["GUERARD","Julian","3 B","17T000053","guerardj","Petai824","2005-12-07","843927NIABLE"]
["GUERINI","Theo","3 B","17T000054","guerinit1","Ploye285","2005-02-01","629736LOFANT"]
["HASNAOUI","Tiziana","3 B","17T000055","hasnaouit","Ilots536","2004-04-19","981183PIQUEZ"]
["KINDERSTUTH","Fanny","3 B","17T000056","kinderstuthf","Caser263","2004-01-15","084316VENGEZ"]
["KRUOPIS","Domantas","3 B","17T000057","kruopisd","Humes314","2004-10-13","570299CASERA"]
["LATY","Trystan","3 B","17T000058","latyt","Bosse550","2005-12-30","155942GEMMER"]
["LEONARD","Lenny","3 B","17T000059","leonardl1","Khols831","2005-07-04","149772RAZZIE"]
["LESUEUR","Marie","3 B","17T000060","lesueurm","Gobai410","2005-08-03","003735SENTIE"]
["LOMBARDO","Hugo","3 B","17T000061","lombardoh","Peine461","2004-01-25","088422JOUTES"]
["MARCELLIN","Ugo","3 B","17T000062","marcellinu","Halat040","2004-10-15","937625CONTES"]
["MEZQUIDA","Chloe","3 B","17T000063","mezquidac","Irisa725","2005-09-16","379145FELIDE"]
["MIRA LE ROY","Alexandre","3 B","17T000064","miraleroya","Touai206","2005-11-13","147007ECIMAS"]
["MONOSSIAN","Ha√Øk","3 B","17T000065","monossianh","Affin082","2004-06-13","089270CONGES"]
["MONTUORI","Johan","3 B","17T000066","montuorij","Monda677","2005-01-29","218607EPEULE"]
["MUZART","Thomas","3 B","17T000067","muzartt","Canot635","2004-07-19","956737RAPAIS"]
["NAPPA-FERRER","√âlisa","3 B","17T000068","nappaferrere","Etuve411","2005-03-25","050115LESEES"]
["NGUYEN","Catherine","3 B","17T000069","nguyenc1","Herbe743","2004-12-21","178285KHANAT"]
["OLIVERO","Julien","3 B","17T000070","oliveroj","Irait050","2004-10-27","088583NATTEZ"]
["PETROSYAN","Christine","3 B","17T000071","petrosyanc","Rayee800","2004-12-23","243233STRIAT"]
["POLITO","Loris","3 B","17T000072","politol","Gravi116","2004-05-18","190261REVEIL"]
["PONCE","Ines","3 B","17T000073","poncei","Empan041","2005-05-15","536647EPURAS"]
["RACHELLO","Mathys","3 B","17T000074","rachellom","Posez478","2004-07-23","497800RETAMA"]
["RASCA","Chiara-Rose","3 B","17T000075","rascac","Gigue882","2004-09-29","054654VIVREE"]
["RIGAMONTI-BARRES","Florian","3 B","17T000076","rigamontibarresf","Renne430","2004-08-26","933172DEDIAI"]
["SELLAF","Matiss","3 B","17T000077","sellafm","Droit041","2005-07-21","561630NICHAI"]
["SPERONE","Jade","3 B","17T000078","speronej","Nette842","2004-09-30","612131VOTRES"]
["TASSO","Ambre","3 B","17T000079","tassoa","Vivez635","2005-08-22","662276AMPUTE"]
["TASSO","Cerise","3 B","17T000080","tassoc","Gravi158","2004-04-27","785985ENROLE"]
["TIBI","Lina","3 B","17T000081","tibil","Couva842","2005-02-11","221843BONACE"]
["TRAMINI","Charlotte","3 B","17T000082","traminic3","Humes576","2005-06-07","583021CHAUVI"]
["VAUCOULEUR","Paola","3 B","17T000083","vaucouleurp1","Louai783","2005-08-29","926576DOSEES"]
["VICENTE","Lylian","3 B","17T000084","vicentel","Fixes637","2004-05-04","929374BOUCLA"]
["ABDILLAHI","Alya","3 C","17T000085","abdillahia1","Titis572","2005-09-23","437102DUPAIS"]
["ABDILLAHI","Awa","3 C","17T000086","abdillahia2","Butes854","2005-09-23","833113LASSAS"]
["AGAIAN","Mathieu","3 C","17T000087","agaianm","Theme048","2004-08-24","368015JAUNIE"]
["ALCALA","Marie","3 C","17T000088","alcalam","Reent432","2005-02-14","313715RIDULE"]
["ALLIN","Simon","3 C","17T000089","allins","Niant048","2004-09-22","307768EGRENE"]
["ARNAUD","Th√©o","3 C","17T000090","arnaudt2","Devis227","2004-09-01","117146SEIDES"]
["AUDRY BAUER","Ma√™lle","3 C","17T000091","audrybauerm","Caduc255","2004-05-11","972564ETISIE"]
["BALTI","Amin","3 C","17T000092","baltia","Vieux706","2005-10-05","132875LINGEE"]
["BELLEMARE","Solen","3 C","17T000093","bellemares","Droit608","2005-05-26","669413VOLETA"]
["BELRHAZI","Karim","3 C","17T000094","belrhazik","Ribla556","2004-02-12","559620TORTIS"]
["BERTRAND","Oc√©ane","3 C","17T000095","bertrando1","Egare276","2005-08-30","941970BARBES"]
["BIELLE","Margaux","3 C","17T000096","biellem","Salit031","2004-05-24","814167JOUXTE"]
["BOUAFFAD","Hind","3 C","17T000097","bouaffadh","Natta334","2005-08-27","623710PRAXIS"]
["BREDENBACH","William","3 C","17T000098","bredenbachw","Elbot485","2006-04-30","829180LATINE"]
["CAN","Zaman","3 C","17T000099","canz","Pluma128","2004-03-27","316748BRETTE"]
["CARRANO","Emma","3 C","17T000100","carranoe","Hocha335","2005-01-27","907452TISERA"]
["CAULIER","Priscillia","3 C","17T000101","caulierp","Divan542","2005-11-01","886577ABOLIT"]
["CUESTA","Marine","3 C","17T000102","cuestam","Fixes716","2004-07-22","399880AZURAI"]
["DELLA VALLE","Audon","3 C","17T000103","dellavallea","Lamie384","2005-11-12","205745GROLLE"]
["DI GUGLIELMO","Mathys","3 C","17T000104","diguglielmom","Gorge656","2005-05-16","157247DROPPE"]
["DIEZ DEL CORRAL","Pablo","3 C","17T000105","diezdelcorralp","Mutin538","2004-05-19","207274AVINES"]
["EL FATTOUHI","Sofiane","3 C","17T000106","elfattouhis","Parle363","2004-04-14","450260PADOUE"]
["ELSERMANS","Brice","3 C","17T000107","elsermansb","Muait658","2005-07-28","182236TARENT"]
["EVEILLARD","Tom","3 C","17T000108","eveillardt","Talcs020","2005-11-01","204783RAMONA"]
["FERRARA","Laur√©lyne","3 C","17T000109","ferraral","Lofts236","2005-04-13","456267TOREEZ"]
["GOMEZ","Mael","3 C","17T000110","gomezm24","Vamps057","2004-11-12","314685VEXIEZ"]
["GOMEZ JOUVENTIN","Clement","3 C","17T000111","gomezjouventinc","Irait057","2004-05-28","202113GENERA"]
["HAGEGE","Yoni","3 C","17T000112","hagegey","Droit264","2004-09-14","842908PONCAS"]
["HARO","Thomas","3 C","17T000113","harot1","Mutin383","2004-06-04","583899COUREZ"]
["LAINE","Alyssia","3 C","17T000114","lainea1","Luxer578","2005-03-23","012884LANGEE"]
["LATOUR","Na√Øs","3 C","17T000115","latourn","Calva090","2004-12-28","798002DODINE"]
["LATRECHE","Sofia","3 C","17T000116","latreches","Pluie411","2004-11-30","329328APPRIS"]
["LEANDRO","Thomas","3 C","17T000117","leandrot","Dotez883","2004-02-04","629011SLALOM"]
["LESCOP","Chlo√©","3 C","17T000118","lescopc","Skies000","2004-12-12","850510EVADER"]
["LIBRATI","Mathis","3 C","17T000119","libratim","Titis461","2004-02-06","442953ORPHIE"]
["LLORET","Clara","3 C","17T000120","lloretc1","Etuve344","2005-04-02","975220EMPUSE"]
["MALFITANO","Valentin","3 C","17T000121","malfitanov","Petai551","2005-05-11","087730OURLET"]
["MARGARIAN","Emmanuel","3 C","17T000122","margariane","Gille040","2004-12-18","351706SAILLI"]
["MENZER","Mekky","3 C","17T000123","menzerm","Gigue735","2004-01-16","214103COFFRE"]
["MESTRE","Arthur","3 C","17T000124","mestrea2","Ulule080","2005-12-03","487619CLONER"]
["MOHAMED","Amane","3 C","17T000125","mohameda28","Neveu775","2005-01-20","152303IMPACT"]
["MURAT","Anouk","3 C","17T000126","murata1","Terre363","2004-06-24","779816PERSEE"]
["OULD","Manon","3 C","17T000127","ouldm","Louve527","2005-06-14","110613ROUENT"]
["OUMAMMAR","M√©dina","3 C","17T000128","oumammarm","Unira322","2004-06-15","174748SALURE"]
["PARISI","Julia","3 C","17T000129","parisij1","Halat266","2004-11-09","689439TAMIAS"]
["PERUFFO","Cassandra","3 C","17T000130","peruffoc","Aryle538","2004-09-12","989573TALONS"]
["PLANTE-ATHANASSIOU","Hugo","3 C","17T000131","planteathanassiouh","Bluff106","2005-11-04","651658CANULA"]
["RANDRIAMISAINA","Anja","3 C","17T000132","randriamisainaa","Nerfs323","2004-09-10","505024LIBRES"]
["REYMOND","Nicolas","3 C","17T000133","reymondn1","Bosse108","2005-06-11","935801COCHES"]
["ROMINGER","Lena","3 C","17T000134","romingerl","Ploye802","2004-06-11","540490RELAYE"]
["ROUVIER","Leonie","3 C","17T000135","rouvierl","Bilai255","2005-12-15","212600ACTIVE"]
["TAILLEFER","Loukas","3 C","17T000136","tailleferl","Titis214","2004-01-02","309962FRUGAL"]
["TCHITDJIAN","Loup","3 C","17T000137","tchitdjianl","Pluma421","2004-03-16","893892ANHELE"]
["TEBCHERANI DURIEUX","Samuel","3 C","17T000138","tebcheranidurieuxs","Cloua107","2005-11-08","877243ETRIPE"]
["THOMAS","Robin","3 C","17T000139","thomasr2","Notai421","2004-07-30","554464OBTENU"]
["AKIL","Elham","3 D","17T000140","akile","Megot686","2005-04-09","920375USINAT"]
["ARBADJI","Lisa","3 D","17T000141","arbadjil","Serie043","2004-04-19","352855SUBERS"]
["BARDISA","Mathias","3 D","17T000142","bardisam","Serie734","2004-10-11","621317PERLON"]
["BAREAU","Amandine","3 D","17T000143","bareaua1","Anima531","2005-09-19","100850VOLETS"]
["BARRACO","Marlon","3 D","17T000144","barracom","Humat747","2005-05-19","562407MOUSME"]
["BENNICHE","Lina","3 D","17T000145","bennichel","Litre160","2005-03-28","137095GEMMES"]
["BOILEAU","Yanis","3 D","17T000146","boileauy","Aryle031","2004-05-10","195390GUIMPE"]
["BOURBON","Sofian","3 D","17T000147","bourbons","Aryle247","2004-01-29","699816VIDEES"]
["BRINIS","Shana","3 D","17T000148","briniss","Terre247","2004-05-05","226085VIVREE"]
["CESARINI","Mathieu","3 D","17T000149","cesarinim","Belge814","2005-09-29","972390RACLER"]
["CHAMBON","Clement","3 D","17T000150","chambonc1","Rares121","2005-02-22","112862FETERA"]
["CHAP-DUSSET","Emilie","3 D","17T000151","chapdussete","Notai483","2005-10-31","705509ACTUEL"]
["CHELDA","Maryam","3 D","17T000152","cheldam","Xipho237","2005-11-04","229211LUXONS"]
["COLLARD BOVY","Theo","3 D","17T000153","collardbovyt","Exils725","2004-01-08","661119GLANER"]
["COULANGE","Theo","3 D","17T000154","coulanget1","Divan600","2005-12-26","228686INNOVA"]
["DUPUIS--POULET","H√©l√®ne","3 D","17T000155","dupuispouleth","Liras235","2005-09-25","737817PULSES"]
["DURAND","Kelyan","3 D","17T000156","durandk2","Mimat170","2005-08-25","481937DANDYS"]
["EDEL-JEAN","Adrian","3 D","17T000157","edeljeana","Unira386","2005-11-17","154496CETERA"]
["EGEA","Gregory","3 D","17T000158","egeag","Cloua517","2004-02-15","459517TRAITE"]
["EL DJIDEL","Amine","3 D","17T000159","eldjidela","Mazer556","2003-10-09","128040TUBONS"]
["ESPOSITO","Clo√©","3 D","17T000160","espositoc7","Lamie026","2004-10-18","758181EDENTE"]
["FERRANDI","Mathieu","3 D","17T000161","ferrandim1","Droit865","2005-05-02","423562MORDUS"]
["FRIZZI","Emeline","3 D","17T000162","frizzie","Louai470","2004-01-20","208647ROTIES"]
["GIOVANNELLI","Julie","3 D","17T000163","giovannellij","Etuve841","2004-06-14","450461EFFACE"]
["HAMOUDA","Yolan","3 D","17T000164","hamouday","Fuels536","2004-04-27","703512CARRAT"]
["HASNAOUI","Fiona","3 D","17T000165","hasnaouif","Viree764","2005-06-30","972944INCISE"]
["HENRY","Sandy","3 D","17T000166","henrys5","Talcs103","2004-07-01","645226NAGEUR"]
["HUGUET","Sandra","3 D","17T000167","huguets","Petai246","2005-12-12","764147STYLET"]
["JADE","Lili","3 D","17T000168","jadel","Touai071","2005-10-13","650387SELLEZ"]
["JULLIEN","Baptiste","3 D","17T000169","jullienb","Packs832","2004-12-09","542886CALTAT"]
["KAHOUADJI","Nour El Houda","3 D","17T000170","kahouadjin","Pluma353","2004-07-01","814895CANIFS"]
["LALAURIE","Quentin","3 D","17T000171","lalaurieq","Megot676","2004-09-28","036293GARAGE"]
["LANAI","Melissa","3 D","17T000172","lanaim","Barye516","2005-10-09","381774LANCAS"]
["LAVAL","Coralie","3 D","17T000173","lavalc1","Couva411","2004-05-21","989090FERMES"]
["LUONG","Kevin","3 D","17T000174","luongk","Divan206","2004-11-30","066531BLUTEZ"]
["MANENT","Mael","3 D","17T000175","manentm1","Canot040","2004-09-11","013222ECORCE"]
["MARMONIER","Mila","3 D","17T000176","marmonierm","Louai823","2005-05-23","343749EBROUA"]
["MARQUIRAN","Elisa","3 D","17T000177","marquirane","Ribla205","2005-02-14","345915USAGER"]
["MAURIN","Florent","3 D","17T000178","maurinf2","Divan412","2005-07-18","283457REFUTE"]
["MESSINA","Matteo","3 D","17T000179","messinam1","Fremi618","2005-08-27","154464ULULAS"]
["MOKRANI","Kenza","3 D","17T000180","mokranik","Calez251","2004-06-21","395917BALAYA"]
["MOUNIER","Noah","3 D","17T000181","mouniern","Exils040","2005-03-27","671516RAGUAT"]
["NOTARI","Molly","3 D","17T000182","notarim1","Neveu115","2004-04-26","634300RAQUEE"]
["PEYRAUD","Antoine","3 D","17T000183","peyrauda","Cuves800","2004-08-15","537441TERREE"]
["PICCOLO","Calista","3 D","17T000184","piccoloc","Muait745","2004-08-08","101083 AIGRIT"]
["POURTAL","Julia","3 D","17T000185","pourtalj","Theme313","2005-05-10","918923SMASHS"]
["RAFAI","Anys","3 D","17T000186","rafaia1","Caser323","2004-06-03","073394DEMENS"]
["REGINENSI","Dorian","3 D","17T000187","reginensid","Mazer736","2004-12-02","311211ALIENE"]
["RIVOIRE","Ma√™va","3 D","17T000188","rivoirem1","Empan676","2004-03-18","011307GEYSER"]
["SGARD","Alicia","3 D","17T000189","sgarda","Butes312","2005-12-06","754255DIFFAS"]
["SIMON","Arnaud","3 D","17T000190","simona6","Fuels570","2004-03-31","546136RECTOS"]
["STEFANUT","Mathilde","3 D","17T000191","stefanutm","Ribla842","2004-10-15","340963CLAVER"]
["STISSI","Mathieu","3 D","17T000192","stissim1","Louai364","2005-09-21","988945DEGLUA"]
["TACHOUAFT- GAILLARD","Lenny","3 D","17T000193","tachouaftgaillardl","Nuise214","2004-12-31","723184ADONNE"]
["VITREY-EYMARD","Madeleine","3 D","17T000194","vitreyeymardm","Fiere008","2004-12-13","158323LAVEUR"]
["ABADIA","Lily-Rose","3 E","17T000195","abadial","Butes210","2005-01-05","913814LAMBIN"]
["ABOU","Alexis","3 E","17T000196","aboua","Gobai666","2004-03-26","553225COUVER"]
["AIMEDIEU","Arthur","3 E","17T000197","aimedieua","Ulule161","2005-07-18","291191FADENT"]
["AMROUN","M√©lissa","3 E","17T000198","amrounm","Theme856","2005-10-05","896454ECARTE"]
["ASTIER","Pierre-Loup","3 E","17T000199","astierp1","Sport053","2005-08-04","036936AULNES"]
["AUQUIER","Celia","3 E","17T000200","auquierc","Mazer255","2004-09-08","308979FLAMBE"]
["BELABBAS","Lilia","3 E","17T000201","belabbasl1","Mutin582","2005-05-05","044480MISSES"]
["BELFODIL","Isma√´l","3 E","17T000202","belfodili","Butes326","2005-12-21","907049CEDENT"]
["BOFF","Math√©o","3 E","17T000203","boffm","Neveu012","2004-03-02","865794COQUER"]
["BOUCHOU","Lucas","3 E","17T000204","bouchoul","Aryle421","2005-08-08","588054VENGES"]
["BOUHADFANE","Samy","3 E","17T000205","bouhadfanes","Bleme278","2005-12-31","937914CURENT"]
["CHABANI","Sarah","3 E","17T000206","chabanis","Droit658","2005-07-11","860730MENIEZ"]
["CHARRIER","Matteo","3 E","17T000207","charrierm1","Plaid354","2004-04-20","746071CAFTES"]
["DE BRITES","Anth√©a","3 E","17T000208","debritesa1","Parle322","2004-09-21","681301ETUVAI"]
["DEDE","Mathias","3 E","17T000209","dedem","Cruel322","2004-03-04","826402SIGNAL"]
["DINTERICH","Elyna","3 E","17T000210","dinteriche","Talcs538","2004-02-17","098274BAUGEE"]
["DIOP","Malick","3 E","17T000211","diopm7","Gille863","2005-07-06","724927REMUES"]
["FERSAOUI","Rayan","3 E","17T000212","fersaouir","Humat443","2005-11-02","060706ROMANO"]
["GALLINI","Martin","3 E","17T000213","gallinim","Packs384","2005-08-19","311111MIXENT"]
["GHYS","Celia","3 E","17T000214","ghysc","Gorge138","2004-04-19","747065DUPIEZ"]
["GIRARD","Anthony","3 E","17T000215","girarda3","Terni686","2004-10-07","663547PICOLO"]
["JOURDAN","Arthur","3 E","17T000216","jourdana4","Halai107","2004-10-19","827566TEINTS"]
["KAWSKI","Valentine","3 E","17T000217","kawskiv","Serie287","2005-08-27","015245KEFIRS"]
["KUNZ","Odessa","3 E","17T000218","kunzo","Crepu314","2004-01-18","038318BOSSUS"]
["LAEZZA","Julie","3 E","17T000219","laezzaj","Talcs676","2004-10-23","581815ECORES"]
["LETON-CAPPONI","Sol√©a","3 E","17T000220","letoncapponis","Digne410","2005-11-13","652737PARAGE"]
["LEVY","Gaetan","3 E","17T000221","levyg","Gravi000","2004-04-13","043560CIRAIT"]
["MAHMOUD","Lorenzo","3 E","17T000222","mahmoudl","Rayee578","2004-09-30","028435TYPHON"]
["MARTY","Mat√©o","3 E","17T000223","martym1","Jeuna130","2005-07-31","383458GROGNA"]
["MASSARD","Matthieu","3 E","17T000224","massardm","Empan785","2004-09-15","917297GARAIS"]
["MAZZELLA","Elsa","3 E","17T000225","mazzellae1","Barye773","2005-06-18","218820HIEBLE"]
["MOHAMED","Nour","3 E","17T000226","mohamedn25","Affin832","2005-03-10","032198DECUVE"]
["MOREIRA DE BRITO","Kellya","3 E","17T000227","moreiradebritok","Anion082","2004-05-12","668324NOTRES"]
["NAVA","Chloe","3 E","17T000228","navac","Lobby256","2005-11-14","873757EVOLUE"]
["NAVA","Yanis","3 E","17T000229","navay","Litre256","2005-11-14","289584DEVOUE"]
["NOUCHI","Axelle","3 E","17T000230","nouchia","Monda187","2006-11-28","741111DATIEZ"]
["PACTEAU","Lucie","3 E","17T000231","pacteaul","Halai453","2005-10-31","816519SUIFFE"]
["PAURIAC","Laura","3 E","17T000232","pauriacl","Anima538","2004-07-11","063645NIVALE"]
["PIAZZA--GIAMBINO","Stella","3 E","17T000233","piazzagiambinos","Louai745","2004-12-22","211134GATTES"]
["RACHI","Emma","3 E","17T000234","rachie","Culex478","2004-07-09","302829UNIONS"]
["RIFKI","Rh√©da","3 E","17T000235","rifkir","Vivez430","2004-03-26","582152VERNIR"]
["SABATIER","Manon","3 E","17T000236","sabatierm7","Belge462","2005-10-12","294953 ALUNEE"]
["SALEMME","Gregory","3 E","17T000237","salemmeg","Egare802","2004-07-10","960753MACHIN"]
["SANTONI","Gabriel","3 E","17T000238","santonig1","Bilai023","2004-12-06","019037CRASHS"]
["SIMONET","Solene","3 E","17T000239","simonets","Couva570","2004-05-29","227122ZEPHYR"]
["SORRENTI","Marco-Andrea","3 E","17T000240","sorrentim","Louai528","2005-07-06","976868IODAIT"]
["TEISSIER RUBERTI","Matteo","3 E","17T000241","teissierrubertim","Caser107","2005-09-23","193275MOURON"]
["TUBERT","Mathis","3 E","17T000242","tubertm","Gorge421","2005-10-22","085223MENTIT"]
["UBALDO","Lucie","3 E","17T000243","ubaldol","Viree365","2004-07-27","733322ALUNIS"]
["VILLAND","Antoine","3 E","17T000244","villanda","Anima637","2004-07-15","067572CHANTE"]
["VOGLER","Bryan","3 E","17T000245","voglerb","Agoni000","2005-03-07","698859LIVREE"]
["VUNIC","Ana","3 E","17T000246","vunica","Rares008","2005-02-21","431488OURDIE"]
["ZAHZOUH","Amina","3 E","17T000247","zahzouha","Buscs844","2004-11-02","536472FIGEES"]
["ZIANI","Mehdi","3 E","17T000248","zianim3","Petai844","2004-12-18","617612AJUSTE"]
["ZIDAT","C√©lina","3 E","17T000249","zidatc","Peine258","2005-12-20","914765STAFFE"]

{"sheet":"Feuil1","index":3,"n_rows":0,"n_cols":0,"rows_kept":0,"cut":false,"hidden":false,"merged":[]}